Cogmind - Beta 17 *** ADVENTURER MODE // 2026.06.26 @ 11:35:58 Player: Jefffff Result: Destroyed by X-77 Beamer with Gatling Laser Performance ------------- Evolutions (6) 3000 Regions Visited (15) 3000 Robots Destroyed (123) 615 Value Destroyed (4894) 4894 Prototype IDs (71) 1420 Alien Tech Used (0) 0 Bonus (4402) 4402 TOTAL SCORE: 17331 Bonus ------- High Alert Combat Kills 64 Follower Combat Kills 407 Entered DSFs 500 Registered with UFD 300 Met Optimus in HQ 500 Met Data Miner 300 Met Warlord at Base 500 MAIN.C Attacked Warlord 500 Warlord Defense Kills 1342 Friendly Fire -11 Cogmind --------- Core Integrity 0/1150 Matter 190/300 Energy 40/100 System Corruption 8% Temperature Cool (48) Movement Core (1350) Ox26 Location -4/DSF Parts ------- > --- POWER (2) -------- (None) > --- PROPULSION (6) --- (None) > --- UTILITY (8) ------ Huge Storage Unit 0b10 Decoder Chip [Looter] (fused) Improved Launcher Guidance Computer Self-contained Transmogrifier > --- WEAPON (3) ------- (None) > --- INVENTORY (25) --- Micro Fission Core Improved Fusion Compressor Cargo Storage Unit 0b10 Decoder Chip [Scout] 0b10 Decoder Chip [Skirmisher] Plasma Cutter Peak State ------------ > --- POWER ------------ Vortex Chain Reactor > --- PROPULSION ------- Light Armored Exoskeleton Armored Leg Enhanced Flexi-carbon Leg Experimental Myomer Leg Improved Diametric Drive > --- UTILITY ---------- Huge Storage Unit Improved Transmission Jammer Powered Armor Thermal Barrier Ghost Barrier Self-contained Transmogrifier > --- WEAPON ----------- Wave Gun Heavy Pick Force Lance > --- INVENTORY -------- Improved Deuterium Engine Light Angular Momentum Engine Light Angular Momentum Engine Armored Huge Wheel Advanced Heat Sink Cargo Storage Unit 0b10 Decoder Chip [Scout] 0b10 Decoder Chip [Skirmisher] Energy Filter Improved Kinecellerator Improved Reaction Control System Improved Phase Shifter Improved Utility Shielding Makeshift Ablative Armor Makeshift Ablative Armor Advanced Remote Force Field Gatling Laser Thermoblaster Thermoblaster Plasma Cutter Molecular Deconstructor Sapper Charge [Rating: 127] Favorites ----------- Power Light Nuclear Core Engine Heavy Deuterium Engine Power Core Light Nuclear Core Reactor Fusion Reactor Propulsion Aluminum Leg Treads Advanced Treads Leg Aluminum Leg Wheel Armored Huge Wheel Hover Unit Cooled Gravmag System Flight Unit Field Propulsion Array Utility High-capacity Storage Unit Device Self-contained Transmogrifier Storage High-capacity Storage Unit Processor 0b10 Decoder Chip [Skirmisher] Hackware Ghost Barrier Protection Powered Armor Weapon Force Lance Energy Gun Riot Gun Energy Cannon Subdweller Beam Cannon Ballistic Gun Light Assault Rifle Ballistic Cannon Battle Cannon Launcher Thermoblaster Special Weapon Improved Remote Datajack Impact Weapon Great Maul Slashing Weapon DM-GVY's Chainsaw Piercing Weapon Force Lance Build | -11 -10 -10 -9 -9 -6 -6 -6 -6 -5 -5 -5 -5 -4 -4 -4 ------- Run | Yrd Mat Sub Rec Scr Fac Low Low Dat Pro Fac Upp War Pro Fac DSF Slots Evolved 12 | . . . . . 8 . . . . 2 . . . 2 . Power 1 | . . . . . 1 . . . . . . . . . . Propulsion 4 | . . . . . 4 . . . . . . . . . . Utility 6 | . . . . . 3 . . . . 1 . . . 2 . Weapon 1 | . . . . . . . . . . 1 . . . . . Parts Attached 130 | 6 13 6 1 7 27 4 5 . 7 6 . 27 7 . 14 Power 24 | 1 2 . . 3 7 . 1 . . . . 4 1 . 5 Engine 13 | 1 1 . . 3 5 . . . . . . 3 . . . Core 3 | . 1 . . . 1 . . . . . . . . . 1 Reactor 8 | . . . . . 1 . 1 . . . . 1 1 . 4 Propulsion 28 | 2 6 . . . 6 4 . . 1 2 . 5 1 . 1 Treads 1 | . . . . . . 1 . . . . . . . . . Leg 15 | 2 6 . . . . 2 . . 1 2 . 1 1 . . Wheel 8 | . . . . . 5 1 . . . . . 2 . . . Hover 1 | . . . . . . . . . . . . 1 . . . Flight 3 | . . . . . 1 . . . . . . 1 . . 1 Utility 46 | 1 2 2 . 1 10 . 2 . 5 2 . 14 3 . 4 Device 26 | . 1 1 . 1 5 . 2 . 4 1 . 9 . . 2 Storage 5 | 1 1 1 . . . . . . . 1 . . 1 . . Processor 8 | . . . . . 4 . . . 1 . . . 1 . 2 Hackware 1 | . . . . . . . . . . . . 1 . . . Protection 6 | . . . . . 1 . . . . . . 4 1 . . Artifact . | . . . . . . . . . . . . . . . . Weapon 32 | 2 3 4 1 3 4 . 2 . 1 2 . 4 2 . 4 Energy Gun 11 | . 1 1 . 2 1 . . . . 2 . 2 1 . 1 Energy Cannon 1 | . . 1 . . . . . . . . . . . . . Ballistic Gun 7 | 2 1 1 1 1 1 . . . . . . . . . . Ballistic Cannon 2 | . . 1 . . . . 1 . . . . . . . . Launcher 2 | . . . . . . . . . . . . . . . 2 Special Weapon 2 | . . . . . . . 1 . . . . . . . 1 Impact Weapon . | . . . . . . . . . . . . . . . . Slashing Weapon 4 | . 1 . . . 2 . . . . . . . 1 . . Piercing Weapon 3 | . . . . . . . . . 1 . . 2 . . . Special Melee Weapon . | . . . . . . . . . . . . . . . . Unidentified Prototypes 13 | . . 1 . 1 . . 1 . . . . 9 . . 1 Parts Lost 56 | . 3 . 1 . 11 . 1 . 5 . . 14 3 . 18 Power 12 | . 1 . . . 3 . . . . . . 3 1 . 4 Propulsion 11 | . 2 . . . 2 . . . . . . 4 1 . 2 Utility 21 | . . . . . 2 . 1 . 4 . . 7 1 . 6 Weapon 12 | . . . 1 . 4 . . . 1 . . . . . 6 Highest Loss Streak 10 | . 2 . 1 . 7 . 1 . 4 . . 10 2 . 9 To Critical Strikes . | . . . . . . . . . . . . . . . . Average Backups 14 | . 6 11 15 15 11 16 16 17 16 16 16 19 11 11 8 Power 2 | . 2 2 1 . . 3 3 3 3 3 3 2 . . 1 Propulsion 2 | . . 1 2 3 4 3 2 3 3 2 1 . . . . Utility 6 | . 3 4 5 6 3 7 7 7 6 7 8 10 7 7 4 Weapon 2 | . . 2 4 2 . 1 2 3 2 2 3 4 3 3 1 Tool/Special . | . . . . . . . . . . . . . . . . Unused Backups 56 | . 5 4 8 19 1 3 7 . . . 1 3 . . 5 Power 13 | . 4 . 2 1 1 1 2 . . . . 1 . . 1 Propulsion 9 | . . . 2 4 . 1 1 . . . 1 . . . . Utility 19 | . 1 2 1 7 . . 4 . . . . 1 . . 3 Weapon 10 | . . 2 3 4 . . . . . . . 1 . . . Tool/Special 5 | . . . . 3 . 1 . . . . . . . . 1 Average Slot Usage (%) 91 | . 95 99 100 97 77 82 82 93 95 99 100 90 60 52 48 Engine 2 | . 11 . . 3 9 6 . . . . . . . . . Core 8 | . 2 14 14 10 1 6 5 . 9 11 11 . 1 . . Reactor 1 | . . . . . . . 7 12 3 . . 7 2 . 3 Leg 25 | . 27 28 28 25 5 21 28 35 39 35 35 27 2 5 1 Wheel 1 | . . . . . 7 6 . . . . . . 4 . . Device 13 | . 10 14 14 14 17 11 11 6 12 23 23 16 12 15 10 Storage 10 | . 14 14 14 14 5 6 6 6 6 5 5 5 7 10 6 Protection 2 | . . . . . 2 5 5 6 3 5 5 7 3 . 1 Energy Gun 3 | . 6 4 1 6 . . . . . 4 5 4 . . . Energy Cannon 2 | . . 3 . 8 . . . . . . . . . . . Ballistic Gun 6 | . 17 12 12 5 . . . . . . . . . . . Ballistic Cannon 3 | . . 5 14 4 . 1 . . . . . . . . . Slashing Weapon 1 | . 4 . . . 6 4 1 . . . . . 3 . . Piercing Weapon 3 | . . . . . . 2 10 13 13 11 11 11 10 15 7 Peak Build Rating 127 | 6 10 21 21 49 102 90 93 93 96 97 91 127 73 58 81 Average Rating 52 | 4 7 16 20 39 82 83 90 92 91 93 91 104 64 58 57 On Entrance 55 | . 6 10 21 21 44 80 88 93 92 88 92 91 50 58 58 Avg Prop Armor Cover (%) 9 | . . . . . 14 9 5 1 1 . . 1 9 . . Naked Turns . | . . . . . . . . . . . . . . . . Heaviest Build 160 | 10 20 52 52 66 77 100 91 84 89 133 133 160 134 103 123 Greatest Support 117 | 20 20 20 20 40 76 104 112 112 113 102 100 117 28 20 20 Greatest Overweight (x) 40 | . 1 2 2 2 21 3 1 . . 1 1 4 5 5 40 Average Overweight (x) 1 | . . . 2 1 2 1 . . . . 1 1 3 5 12 Largest Inventory Capacity 25 | 8 10 20 20 20 20 20 20 20 20 25 25 25 25 25 25 Average Capacity 18 | 7 8 13 20 20 20 20 20 20 20 20 25 25 25 25 25 Most Carried 25 | 1 10 19 20 20 20 20 20 20 20 20 19 25 16 13 14 Average Carried 17 | . 6 12 19 19 16 19 19 20 19 19 19 23 13 13 10 Final Capacity 25 | 8 10 20 20 20 20 20 20 20 20 25 25 25 25 25 25 Final Carried 20 | 1 10 19 20 20 18 19 20 20 20 20 19 11 13 13 7 Transmogrified Parts 162 | . . . . 43 15 34 18 2 15 2 . 20 10 . 3 Integrity Recovered 2536 | . . . . 321 127 378 495 4 494 37 . 472 129 . 79 Class Distribution -------------------- 52% | Mutant 27% | Commander-Mutant 8% | Hacker-Mutant 6% | Gladiator Dominant Class ---------------- Mutant | -10/Materials Mutant | -10/Subcaves Commander-Mutant | -9/Recycling Commander-Mutant | -9/Scraptown Mutant | -6/Factory Mutant | -6/Lower Caves Mutant | -6/Lower Caves Mutant | -6/Data Miner Mutant | -5/Proximity Caves Scavenger-Gladiator | -5/Factory Scavenger-Gladiator | -5/Upper Caves Hacker-Mutant | -5/Warlord Gladiator | -4/Proximity Caves Mutant | -4/Factory Mutant | -4/DSF Resources | -11 -10 -10 -9 -9 -6 -6 -6 -6 -5 -5 -5 -5 -4 -4 -4 ----------- Run | Yrd Mat Sub Rec Scr Fac Low Low Dat Pro Fac Upp War Pro Fac DSF Matter Collected 2142 | 191 320 157 307 70 314 170 73 . 76 59 . 223 140 . 42 Remotely . | . . . . . . . . . . . . . . . . Salvage Created 5926 | . 802 23 794 375 936 176 639 . 795 171 . 414 167 . 634 Parts 267 | . 48 4 39 13 41 5 40 . 29 9 . 16 8 . 15 Haulers Intercepted 2 | . 2 . . . . . . . . . . . . . . Recyclers Shooed 5 | . 4 . 1 . . . . . . . . . . . . Parts Field Recycled . | . . . . . . . . . . . . . . . . Retrieved Matter . | . . . . . . . . . . . . . . . . Parts Self-Destructed 95 | . . 10 . . . 3 45 . 31 . . . 6 . . Prevented 14 | . . . . . . . 14 . . . . . . . . Parts Restored . | . . . . . . . . . . . . . . . . Kills | -11 -10 -10 -9 -9 -6 -6 -6 -6 -5 -5 -5 -5 -4 -4 -4 ------- Run | Yrd Mat Sub Rec Scr Fac Low Low Dat Pro Fac Upp War Pro Fac DSF Combat Hostiles Destroyed 103 | . 13 2 6 6 20 4 13 . 16 2 . 10 4 . 7 Melee 51 | . 1 . . . 7 3 13 . 16 2 . 6 2 . 1 Guns 20 | . 12 2 3 . . . . . . . . 1 2 . . Cannons 16 | . . . 3 6 6 1 . . . . . . . . . AOE 7 | . . . . . 1 . . . . . . 1 . . 5 Classes Destroyed 21 | . 6 1 5 3 1 1 2 . 1 . . 1 . . . Worker 3 | . 2 . 1 . . . . . . . . . . . . Builder 2 | . . . 2 . . . . . . . . . . . . Tunneler 1 | . . . . . 1 . . . . . . . . . . Hauler 2 | . 2 . . . . . . . . . . . . . . Recycler 6 | . 2 . 4 . . . . . . . . . . . . Drone 3 | . . . . . . . . . 1 . . . 2 . . Turret 1 | . . 1 . . . . . . . . . . . . . Watcher 4 | . 3 . . . 1 . . . . . . . . . . Swarmer 25 | . 3 2 . . 6 . 4 . 6 . . . . . 4 Grunt 38 | . 10 . 2 . 8 2 5 . 5 . . 5 1 . . Brawler 5 | . . . 1 . 2 . . . 2 . . . . . . Duelist 5 | . . . . . . . 2 . 1 . . 1 1 . . Sentry 7 | . . . 2 . 1 1 . . 1 2 . . . . . Demolisher 1 | . . . 1 . . . . . . . . . . . . Specialist 5 | . . . . . . . 1 . . . . 1 . . 3 Hunter 1 | . . . . . . 1 . . . . . . . . . Programmer 7 | . . . 1 . 3 . 1 . . . . 2 . . . Striker 1 | . . . . . . . . . . . . 1 . . . Ranger 1 | . . . . 1 . . . . . . . . . . . Guru 2 | . . . . 2 . . . . . . . . . . . Scrapper 3 | . . . . 3 . . . . . . . . . . . Decomposer 1 | . . . . . . . . . 1 . . . . . . Best Kill Streak 6 | . 6 2 2 3 6 2 6 . 5 1 . 6 2 . 4 Combat Bots Only 6 | . 6 2 2 3 5 2 6 . 5 1 . 6 2 . 4 Max Kills in Single Turn 2 | . 1 1 1 1 1 1 1 . 1 1 . 1 1 . 2 Gunslinging . | . . . . . . . . . . . . . . . . Exploded 2 | . . . . . 1 . . . . . . 1 . . 2 Melee 1 | . 1 . . . 1 1 1 . 1 1 . 1 1 . 1 Uniques/NPCs Destroyed . | . . . . . . . . . . . . . . . . Combat | -11 -10 -10 -9 -9 -6 -6 -6 -6 -5 -5 -5 -5 -4 -4 -4 -------- Run | Yrd Mat Sub Rec Scr Fac Low Low Dat Pro Fac Upp War Pro Fac DSF Hostile Shots Fired 1454 | . 94 19 8 15 242 51 84 . 178 17 . 412 23 . 311 Missed 385 | . 21 6 2 2 57 14 35 . 54 7 . 125 4 . 58 Hits 1069 | . 73 13 6 13 185 37 49 . 124 10 . 287 19 . 253 Melee 42 | . . . . . 3 . 2 . 9 . . 21 7 . . Projectile 1027 | . 73 13 6 13 182 37 47 . 115 10 . 266 12 . 253 AOE 11 | . . . 6 . 2 . . . . . . 3 . . . Critical Strikes 34 | . 3 . . . 1 1 . . 8 1 . 15 4 . 1 Actively Blocked 2 | . . . . . . . . . . . . 2 . . . Part Disruptions 9 | . . . . . 1 . . . . . . . . . 8 Damage Taken 13177 | . 807 93 146 138 2263 427 556 . 1787 134 . 3741 297 . 2788 Core 2430 | . 155 6 18 46 288 4 36 . 153 . . 497 76 . 1151 Absorbed by Shields 1319 | . . . 6 41 134 . . . 62 40 . 945 91 . . Redirected to Shielding 169 | . . . . . . . . . . . . 169 . . . Ignored by Resistances 4247 | . 243 30 41 50 674 125 303 . 510 48 . 1281 122 . 820 Core Remaining (%) 48 | 100 . . . 10 . . . . 43 . . . 42 . . Volleys Fired 249 | . 88 14 38 11 54 13 . . . 2 . 6 5 . 18 Largest 2 | . 2 2 2 2 2 1 . . . 1 . 1 1 . 1 Hottest 260 | . 85 104 83 162 200 68 . . . 81 . 94 80 . 260 Shots Fired 385 | . 159 28 74 17 63 13 . . . 2 . 5 6 . 18 Gun 233 | . 159 21 36 . 2 . . . . 2 . 5 6 . 2 Cannon 96 | . . 7 38 17 21 13 . . . . . . . . . Launcher 14 | . . . . . . . . . . . . . . . 14 Special 42 | . . . . . 40 . . . . . . . . . 2 Kinetic 239 | . 131 21 72 . 2 13 . . . . . . . . . Thermal 106 | . 28 6 . 9 40 . . . . 2 . 1 6 . 14 Explosive . | . . . . . . . . . . . . . . . . Electromagnetic 34 | . . 1 2 8 21 . . . . . . . . . 2 Entropic 4 | . . . . . . . . . . . . 4 . . . Robot Hit Streak 25 | . 16 10 15 8 25 3 . . . . . 3 2 . 10 Robot Miss Streak 5 | . 4 2 2 2 2 2 . . . 2 . . 5 . 1 Penetration Max . | . . . . . . . . . . . . . . . . Secondary Targets 2 | . 2 . . . . . . . . . . . . . . Max Gunslinging Chain 1 | . 1 . . . . . . . . . . . . . . Shots Hit Robots 431 | . 126 9 53 10 76 13 25 . 57 4 . 27 14 . 17 Core Hits 184 | . 44 6 31 6 28 5 14 . 22 4 . 8 8 . 8 Critical Kills 1 | . 1 . . . . . . . . . . . . . . Critical Parts Destroyed 1 | . . . . . . . . . . . . 1 . . . Critical Strikes 38 | . 2 . 1 . 12 3 6 . 7 1 . 5 1 . . Burn 4 | . 1 . . . 3 . . . . . . . . . . Destroy 1 | . 1 . . . . . . . . . . . . . . Blast 1 | . . . 1 . . . . . . . . . . . . Sever 17 | . . . . . 9 3 4 . . . . . 1 . . Impale 11 | . . . . . . . 2 . 7 1 . 1 . . . Detonate 1 | . . . . . . . . . . . . 1 . . . Sunder 3 | . . . . . . . . . . . . 3 . . . Melee Attacks 181 | . 9 . . . 23 6 30 . 70 4 . 26 11 . 2 Thermal 1 | . . . . . 1 . . . . . . . . . . Impact . | . . . . . . . . . . . . . . . . Slashing 58 | . 9 . . . 22 6 18 . . . . . 3 . . Piercing 101 | . . . . . . . 12 . 70 4 . 5 8 . 2 Entropic 21 | . . . . . . . . . . . . 21 . . . Sneak Attacks 2 | . . . . . 1 . . . 1 . . . . . . Combat Hostiles . | . . . . . . . . . . . . . . . . Follow-up Attacks 21 | . . . . . 1 . 3 . 9 1 . 4 3 . . Damage Inflicted 12519 | . 1343 127 1043 249 2170 697 1293 . 2252 156 . 1968 336 . 885 Guns 2029 | . 1127 127 538 . 35 . . . . . . 121 54 . 27 Cannons 1862 | . . . 505 249 672 436 . . . . . . . . . Explosions 1077 | . 92 . . . 62 . . . . . . 138 . . 785 Melee 7040 | . 120 . . . 894 261 1293 . 2252 156 . 1709 282 . 73 Ramming 5 | . 4 . . . 1 . . . . . . . . . . Kinetic 2391 | . 792 127 1001 . 35 436 . . . . . . . . . Thermal 2193 | . 427 . . 191 568 . . . . . . 168 54 . 785 Explosive . | . . . . . . . . . . . . . . . . Electromagnetic 799 | . . . 42 58 672 . . . . . . . . . 27 Impact . | . . . . . . . . . . . . . . . . Slashing 2315 | . 120 . . . 894 261 991 . . . . . 49 . . Piercing 3186 | . . . . . . . 302 . 2252 156 . 170 233 . 73 Entropic 1630 | . . . . . . . . . . . . 1630 . . . Highest Corruption 8 | . . . . 2 2 . 1 1 6 1 1 4 4 . 8 Average Corruption 2 | . . . . 1 1 . 1 1 2 1 1 1 4 . 6 Corruption Purged 2 | . . . . . 2 . . . . . . . . . . Corruption Blocked . | . . . . . . . . . . . . . . . . Effects 64 | . . . . . 12 . 7 1 21 1 . 4 12 . 6 Message Errors 17 | . . . . . 2 . 1 . 8 1 . . 3 . 2 Matter Fused 16 | . . . . . 3 . 2 . 4 . . 1 5 . 1 Heat Flow Errors 9 | . . . . . 2 . 2 . 5 . . . . . . Energy Discharges 6 | . . . . . 1 . 1 1 1 . . . 1 . 1 Parts Rejected 1 | . . . . . . . . . . . . 1 . . . Parts Fused 2 | . . . . . . . 1 . . . . . . . 1 Data Loss (minor) 6 | . . . . . 2 . . . 1 . . 1 2 . . Data Loss (major) 4 | . . . . . 2 . . . 1 . . . . . 1 Misfires 1 | . . . . . . . . . . . . . 1 . . Alerts 1 | . . . . . . . . . 1 . . . . . . Weapon Failures 1 | . . . . . . . . . . . . 1 . . . Overload Shots . | . . . . . . . . . . . . . . . . Overflow Damage 669 | . 23 . 18 . 80 73 54 . 128 . . 227 . . 66 Projectiles 95 | . . . 18 . 4 73 . . . . . . . . . Explosions 89 | . 23 . . . . . . . . . . . . . 66 Melee 485 | . . . . . 76 . 54 . 128 . . 227 . . . Knockbacks 7 | . . . 6 . . 1 . . . . . . . . . Impact . | . . . . . . . . . . . . . . . . Kinetic 7 | . . . 6 . . 1 . . . . . . . . . Secondary . | . . . . . . . . . . . . . . . . Self-Inflicted Damage 144 | . 88 . . . . . . . . . . 56 . . . Shots 2 | . 1 . . . . . . . . . . 1 . . . Rammed 1 | . . . . . 1 . . . . . . . . . . Targets Rammed 3 | . 2 . . . 1 . . . . . . . . . . Kicked 2 | . 2 . . . . . . . . . . . . . . Crushed . | . . . . . . . . . . . . . . . . Highest Temperature 864 | . 451 . 58 120 470 220 200 . 263 43 . 164 56 . 864 Average Temperature 61 | . 96 . 19 48 148 115 87 . 109 24 . 4 24 . 304 Received Heat Transfer 4654 | . 555 60 6 72 727 99 207 . 744 47 . 1442 59 . 636 Effects 18 | . 2 . . . 8 . . . . . . . . . 8 Shutdowns 4 | . 2 . . . 1 . . . . . . . . . 1 Energy Bleed 3 | . . . . . . . . . . . . . . . 3 Interference 2 | . . . . . 1 . . . . . . . . . 1 Matter Decay 2 | . . . . . 1 . . . . . . . . . 1 Short Circuit 2 | . . . . . 2 . . . . . . . . . . Damage (minor) 2 | . . . . . . . . . . . . . . . 2 Damage (major) 3 | . . . . . 3 . . . . . . . . . . Siege Activations . | . . . . . . . . . . . . . . . . Martial Activations . | . . . . . . . . . . . . . . . . Shielding Activations . | . . . . . . . . . . . . . . . . Robots Disrupted 2 | . . . . . 2 . . . . . . . . . . Combat Hostiles 2 | . . . . . 2 . . . . . . . . . . Robots Corrupted 3 | . . . . . 3 . . . . . . . . . . Combat Hostiles 3 | . . . . . 3 . . . . . . . . . . Parts Fried 1 | . . . . . 1 . . . . . . . . . . Impact Corruptions . | . . . . . . . . . . . . . . . . Robots Melted 3 | . . . . . 3 . . . . . . . . . . Combat Hostiles 3 | . . . . . 3 . . . . . . . . . . Parts Melted 9 | . 1 . . 3 4 . . . . . . 1 . . . Heat Transferred 4824 | . 951 . . 199 2562 . . . . . . 187 125 . 800 Parts Sabotaged 9 | . . . . . 2 . . . . . . 7 . . . Parts Stolen . | . . . . . . . . . . . . . . . . Parts Stripped . | . . . . . . . . . . . . . . . . Power Chain Reactions 1 | . . . . . 1 . . . . . . . . . . Alert | -11 -10 -10 -9 -9 -6 -6 -6 -6 -5 -5 -5 -5 -4 -4 -4 ------- Run | Yrd Mat Sub Rec Scr Fac Low Low Dat Pro Fac Upp War Pro Fac DSF Maximum Alert Level 3 | . . . . . . . . . . 3 . . . 1 1 Low Security (%) 93 | 100 100 . 100 . 100 . . . . . . . . . 60 Level 1 3 | . . . . . . . . . . . . . . 100 39 Level 2 . | . . . . . . . . . . . . . . . . Level 3 3 | . . . . . . . . . . 100 . . . . . Level 4 . | . . . . . . . . . . . . . . . . Level 5 . | . . . . . . . . . . . . . . . . High Security . | . . . . . . . . . . . . . . . . Max Security . | . . . . . . . . . . . . . . . . Peak Influence 900 | . 137 . 76 . 190 . . . . 900 . . . 300 307 Initial 900 | . . . . . . . . . . 900 . . . 300 185 Average 73 | . 27 . 5 . 68 . . . . 877 . . . 300 210 Influence Increases 4537 | . 469 150 366 . 733 90 448 . 366 960 . 314 75 300 266 Destroy 0b10 Robot/C 2160 | . 260 100 180 . 400 80 380 . 320 40 . 220 40 . 140 Destroy 0b10 Robot/NC 170 | . 45 . 95 . 10 . . . 10 . . . 10 . . Destroy Leader 272 | . 70 . . . 82 10 40 . 20 20 . . 10 . 20 Allied During Kill 33 | . . 5 10 . . . 13 . 1 . . 4 . . . Successful Hack 94 | . 39 . 43 . 12 . . . . . . . . . . Disable Machine 27 | . 9 . 9 . . . . . . . . . . . 9 Anti-Garrison Action 150 | . . . . . 150 . . . . . . . . . . Destroy Structure 101 | . 16 . 29 . 4 . . . . . . . . . 52 Advance Influence 1200 | . . . . . . . . . . 900 . . . 300 . Lose Combat Pursuer 330 | . 30 45 . . 75 . 15 . 15 . . 90 15 . 45 Influence Decreases 4266 | . 449 170 366 . 733 90 448 . 366 80 394 750 125 . 295 Entered New Map 1056 | . . 11 . . . . . . . . 394 486 50 . 115 Time Decay 2498 | . 419 119 296 . 523 90 448 . 356 80 . 92 75 . . Lost Part 455 | . 20 . 10 . 110 . . . 10 . . 125 . . 180 Lost Ally 247 | . . 40 60 . 100 . . . . . . 47 . . . Purge Threat 10 | . 10 . . . . . . . . . . . . . . Squads Dispatched 9 | . 2 . . . 4 . . . . 1 . . . . 2 Investigation 4 | . 2 . . . 1 . . . . 1 . . . . . Extermination 2 | . . . . . 2 . . . . . . . . . . Reinforcement 2 | . . . . . . . . . . . . . . . 2 Assault 1 | . . . . . 1 . . . . . . . . . . Garrison . | . . . . . . . . . . . . . . . . Intercept . | . . . . . . . . . . . . . . . . Searches Triggered . | . . . . . . . . . . . . . . . . Construction Impeded . | . . . . . . . . . . . . . . . . Haulers Reinforced . | . . . . . . . . . . . . . . . . Active Scanning Responses . | . . . . . . . . . . . . . . . . Cargo Convoy Interrupts . | . . . . . . . . . . . . . . . . Stealth | -11 -10 -10 -9 -9 -6 -6 -6 -6 -5 -5 -5 -5 -4 -4 -4 --------- Run | Yrd Mat Sub Rec Scr Fac Low Low Dat Pro Fac Upp War Pro Fac DSF Distress Signals 4 | . 2 . . . 1 . . . 1 . . . . . . Communications Jammed . | . . . . . . . . . . . . . . . . Distress Signals . | . . . . . . . . . . . . . . . . Times Spotted 209 | . 28 13 6 14 30 4 18 . 26 8 . 43 8 . 11 Peak Tracking Total 21 | . 7 6 1 6 5 2 5 . 9 8 . 21 3 . 5 Tactical Retreats 17 | . 2 1 . . 4 . 1 . 1 . . 4 1 . 3 Traps | -11 -10 -10 -9 -9 -6 -6 -6 -6 -5 -5 -5 -5 -4 -4 -4 ------- Run | Yrd Mat Sub Rec Scr Fac Low Low Dat Pro Fac Upp War Pro Fac DSF Traps Triggered 3 | . 2 . . . . . . . . . . . . . 1 Indirectly . | . . . . . . . . . . . . . . . . Trap Hack Attempts . | . . . . . . . . . . . . . . . . Triggered . | . . . . . . . . . . . . . . . . Disarmed . | . . . . . . . . . . . . . . . . Reprogrammed . | . . . . . . . . . . . . . . . . Reused . | . . . . . . . . . . . . . . . . Traps Extracted . | . . . . . . . . . . . . . . . . Installed . | . . . . . . . . . . . . . . . . Triggered . | . . . . . . . . . . . . . . . . Machines | -11 -10 -10 -9 -9 -6 -6 -6 -6 -5 -5 -5 -5 -4 -4 -4 ---------- Run | Yrd Mat Sub Rec Scr Fac Low Low Dat Pro Fac Upp War Pro Fac DSF Machines Disabled 12 | . 1 5 1 2 1 . 1 . . . . . . . 1 Max in Single Turn 1 | . 1 1 . 1 1 . 1 . . . . . . . 1 Garrison Access 1 | . . . . . 1 . . . . . . . . . . Machines Repaired . | . . . . . . . . . . . . . . . . Machines Dismantled 1 | . . . . . 1 . . . . . . . . . . Machines Sabotaged . | . . . . . . . . . . . . . . . . Overloaded Fab Kills . | . . . . . . . . . . . . . . . . Hacking | -11 -10 -10 -9 -9 -6 -6 -6 -6 -5 -5 -5 -5 -4 -4 -4 --------- Run | Yrd Mat Sub Rec Scr Fac Low Low Dat Pro Fac Upp War Pro Fac DSF Machines Accessed 43 | . 5 4 8 6 3 1 . 4 . 1 . 10 . 1 . Terminals 14 | . 5 . 6 . 1 1 . . . . . . . 1 . Fabricators 1 | . . . . . . . . . . 1 . . . . . Repair Stations 1 | . . . . . 1 . . . . . . . . . . Recycling Units . | . . . . . . . . . . . . . . . . Scanalyzers 1 | . . . . . 1 . . . . . . . . . . Garrison Access . | . . . . . . . . . . . . . . . . Total Hacks 181 | . 16 15 52 40 10 1 . 26 . 4 . 14 . 3 . Successful 159 | . 10 15 45 40 5 1 . 26 . 2 . 14 . 1 . Failed 21 | . 6 . 7 . 4 . . . . 2 . . . 2 . Catastrophic 1 | . 1 . . . . . . . . . . . . . . Database Lockouts 1 | . . . . . 1 . . . . . . . . . . Manual 38 | . 11 . 23 . 1 . 2 . . . . 1 . . . Terminals 50 | . 16 . 27 . 3 1 . . . . . . . 3 . Fabricators 4 | . . . . . . . . . . 4 . . . . . Repair Stations 2 | . . . . . 2 . . . . . . . . . . Recycling Units . | . . . . . . . . . . . . . . . . Scanalyzers 5 | . . . . . 5 . . . . . . . . . . Garrison Access . | . . . . . . . . . . . . . . . . Terminal Hacks 139 | . 5 15 37 40 . 1 . 26 . . . 14 . 1 . Record 103 | . . 12 26 40 . 1 . 11 . . . 13 . . . Part Schematic 13 | . . . 4 . . . . 9 . . . . . . . Robot Schematic 3 | . . . . . . . . 3 . . . . . . . Robot Analysis 1 | . . . 1 . . . . . . . . . . . . Prototype ID Bank 5 | . 1 . 1 . . . . 3 . . . . . . . Open Door 2 | . . 1 . . . . . . . . . 1 . . . Open DSF 1 | . . . . . . . . . . . . . . 1 . Terminal Index 3 | . 1 . 2 . . . . . . . . . . . . Repair Station Index 1 | . . . 1 . . . . . . . . . . . . Scanalyzer Index 2 | . 1 . 1 . . . . . . . . . . . . Unreport Threat 1 | . 1 . . . . . . . . . . . . . . Surveillance Status 1 | . 1 . . . . . . . . . . . . . . Proto ID Catalog 1 | . . 1 . . . . . . . . . . . . . Release Object 2 | . . 1 1 . . . . . . . . . . . . Fabricator Hacks 2 | . . . . . . . . . . 2 . . . . . Network Status 1 | . . . . . . . . . . 1 . . . . . Load Schematic 1 | . . . . . . . . . . 1 . . . . . Repair Station Hacks . | . . . . . . . . . . . . . . . . Recycling Unit Hacks . | . . . . . . . . . . . . . . . . Scanalyzer 4 | . . . . . 4 . . . . . . . . . . Retrieve Study 4 | . . . . . 4 . . . . . . . . . . Garrison Access Hacks . | . . . . . . . . . . . . . . . . Unauthorized Hacks 14 | . 5 . 8 . 1 . . . . . . . . . . Terminals 14 | . 5 . 8 . 1 . . . . . . . . . . Track 1 | . . . 1 . . . . . . . . . . . . Botnet 12 | . 5 . 6 . 1 . . . . . . . . . . Operators 1 | . . . 1 . . . . . . . . . . . . Fabricators . | . . . . . . . . . . . . . . . . Repair Stations . | . . . . . . . . . . . . . . . . Recycling Units . | . . . . . . . . . . . . . . . . Scanalyzers . | . . . . . . . . . . . . . . . . Garrison Access . | . . . . . . . . . . . . . . . . Data Cores Recovered . | . . . . . . . . . . . . . . . . Used . | . . . . . . . . . . . . . . . . Hacking Detections 14 | . 5 . 6 . 2 . . . . 1 . . . . . Full Trace Events 3 | . . . 1 . 1 . . . . 1 . . . . . Feedback Events 1 | . . . . . . . . . . 1 . . . . . Corruption 1 | . . . . . . . . . . 1 . . . . . Feedback Blocked . | . . . . . . . . . . . . . . . . Robot Schematics Acquired 3 | . . . . . . . . 3 . . . . . . . Robots Built . | . . . . . . . . . . . . . . . . Authchips . | . . . . . . . . . . . . . . . . Time . | . . . . . . . . . . . . . . . . Total Robot Build Rating . | . . . . . . . . . . . . . . . . Part Schematics Acquired 13 | . . . 4 . . . . 9 . . . . . . . Parts Built . | . . . . . . . . . . . . . . . . Authchips . | . . . . . . . . . . . . . . . . Time . | . . . . . . . . . . . . . . . . Total Part Build Rating . | . . . . . . . . . . . . . . . . Part Studies Acquired 4 | . . . . . 4 . . . . . . . . . . Parts Repaired . | . . . . . . . . . . . . . . . . Time . | . . . . . . . . . . . . . . . . Parts Recycled . | . . . . . . . . . . . . . . . . Recycled Matter . | . . . . . . . . . . . . . . . . Retrieved Matter . | . . . . . . . . . . . . . . . . Retrieved Components . | . . . . . . . . . . . . . . . . Parts Scanalyzed . | . . . . . . . . . . . . . . . . Part Schematics Acquired . | . . . . . . . . . . . . . . . . Parts Damaged . | . . . . . . . . . . . . . . . . Bothacking | -11 -10 -10 -9 -9 -6 -6 -6 -6 -5 -5 -5 -5 -4 -4 -4 ------------ Run | Yrd Mat Sub Rec Scr Fac Low Low Dat Pro Fac Upp War Pro Fac DSF Used RIF Installer . | . . . . . . . . . . . . . . . . Robots Hacked . | . . . . . . . . . . . . . . . . Non-combat . | . . . . . . . . . . . . . . . . Combat . | . . . . . . . . . . . . . . . . Robot Hacks Applied . | . . . . . . . . . . . . . . . . Relay Couplers Released . | . . . . . . . . . . . . . . . . Fabnet Peak Effective % . | . . . . . . . . . . . . . . . . Robots Rewired 24 | . . . 17 . . . . . 2 . . 5 . . . Allies Hacked 1 | . . . . . . . . . . . . 1 . . . Hacks Repelled . | . . . . . . . . . . . . . . . . Allies | -11 -10 -10 -9 -9 -6 -6 -6 -6 -5 -5 -5 -5 -4 -4 -4 -------- Run | Yrd Mat Sub Rec Scr Fac Low Low Dat Pro Fac Upp War Pro Fac DSF Total Allies 35 | . . 7 17 . . . 4 . 2 . . 5 . . . Largest Group 15 | . . 4 15 15 10 . 4 . 2 . . 5 . . . Highest-Rated Group 310 | . . 74 203 203 123 . 310 . 59 . . 305 . . . Highest-Rated Ally 81 | . . 19 27 27 27 . 81 . 30 . . 64 . . . Initial UFD Resources 39 | . . . . . 33 33 33 33 37 37 37 37 39 39 39 Total Orders . | . . . . . . . . . . . . . . . . Ally Attacks 72 | . . 22 8 5 . . 13 . 17 . . 7 . . . Total Damage 2002 | . . 607 417 74 . . 533 . 107 . . 264 . . . Kills 22 | . . 4 7 2 . . 6 . 2 . . 1 . . . Allies Corrupted 1 | . . . . . . . . . 1 . . . . . . Allies Melted 6 | . . . . 3 . . . . 1 . . 2 . . . Intel | -11 -10 -10 -9 -9 -6 -6 -6 -6 -5 -5 -5 -5 -4 -4 -4 ------- Run | Yrd Mat Sub Rec Scr Fac Low Low Dat Pro Fac Upp War Pro Fac DSF Active Infowar (turns) 8633 | . 1111 188 . . 922 1253 1591 114 1195 23 6 1819 202 . 209 Optics 481 | . . . . . 481 . . . . . . . . . . Sensors 2 | . . . . . . . . . . . . . . . 2 IFF 1185 | . . . . . 470 . . . 715 . . . . . . Terrain 1223 | . . . . . . 1223 . . . . . . . . . Seismic 1299 | . 1111 188 . . . . . . . . . . . . . Decoding 1619 | . . . . . 54 . 652 114 480 . . . 111 . 208 Triangulation 652 | . . . . . . . . . . 23 6 623 . . . Spoofing 1000 | . . . . . . 30 970 . . . . . . . . Jamming 1287 | . . . . . . . . . . . . 1196 91 . . Robot Analysis Total 1 | . . . 1 . . . . . . . . . . . . Derelict Logs Recovered 9 | . . 2 . . . 2 1 . 2 . . . 2 . . Drone Launches . | . . . . . . . . . . . . . . . . Drone Recoveries . | . . . . . . . . . . . . . . . . Decoded 0b10 Intel 16 | . . . . . 1 . . . . . . . . . 15 Items 15 | . . . . . . . . . . . . . . . 15 Guards 1 | . . . . . 1 . . . . . . . . . . Exploration | -11 -10 -10 -9 -9 -6 -6 -6 -6 -5 -5 -5 -5 -4 -4 -4 ------------- Run | Yrd Mat Sub Rec Scr Fac Low Low Dat Pro Fac Upp War Pro Fac DSF Turns Passed 23587 | 66 1446 5081 1739 4849 1301 2258 1591 114 1625 178 6 2279 665 15 374 Spaces Moved 12207 | 53 908 2772 567 2005 534 1419 1136 94 1092 124 2 1042 417 4 38 Core 22 | 10 . . . . 3 . . . . . . . . . 9 Treads . | . . . . . . . . . . . . . . . . Legs 10541 | 43 908 2772 567 2005 . 727 1136 94 1092 124 2 1036 3 4 28 Wheels 1459 | . . . . . 347 692 . . . . . 6 414 . . Hover . | . . . . . . . . . . . . . . . . Flight 185 | . . . . . 184 . . . . . . . . . 1 Fastest Speed 50 | 50 120 120 260 180 80 92 121 121 115 116 191 135 135 470 400 Average Speed 173 | 106 121 175 260 219 176 153 130 121 120 120 191 203 147 470 809 Slowest Speed 2355 | 120 190 260 260 360 1100 250 250 122 122 191 191 360 470 470 2355 Overloaded Moves . | . . . . . . . . . . . . . . . . Propulsion Burnouts . | . . . . . . . . . . . . . . . . Robots Hopped . | . . . . . . . . . . . . . . . . Potential Cave-ins 7 | . . . . . . . . . . . . 7 . . . Cave-ins Triggered . | . . . . . . . . . . . . . . . . Exploration Rate (%) 64 | 4 95 97 99 89 17 99 99 73 96 4 2 94 57 . 43 Regions Visited 15 Branch Regions 10 Pre-discovered Areas 7 | . . 2 . . . . . 1 1 . . 1 2 . . Known Exits Taken 1 | . . . . . . . . . . . . . . 1 . Unknown Exits Taken 14 | 1 1 1 1 1 1 1 1 1 1 1 1 1 1 . . Scrap Searched 27 | . . 8 . 6 . 4 4 . 3 . . . 2 . . Spaces Dug 5 | . . . . . . . . . . . . 5 . . . Terrain Destroyed 89 | . 19 . 7 2 3 4 . . . . . 22 . . 32 Melee 1 | . . . . . . . . . . . . 1 . . . Projectile 20 | . . . 7 2 . 4 . . . . . 7 . . . AOE 68 | . 19 . . . 3 . . . . . . 14 . . 32 Terrain Rammed . | . . . . . . . . . . . . . . . . Walls Destroyed . | . . . . . . . . . . . . . . . . Machines Disabled . | . . . . . . . . . . . . . . . . Actions | -11 -10 -10 -9 -9 -6 -6 -6 -6 -5 -5 -5 -5 -4 -4 -4 --------- Run | Yrd Mat Sub Rec Scr Fac Low Low Dat Pro Fac Upp War Pro Fac DSF Total 13993 | 59 1101 2973 768 2454 743 1470 1201 93 1280 144 5 1162 450 3 87 Wait 874 | . 48 151 40 387 67 17 19 . 112 4 3 8 6 . 12 Move 12192 | 52 907 2771 566 2004 533 1418 1135 93 1091 123 1 1041 416 3 38 Hop . | . . . . . . . . . . . . . . . . Pick Up 136 | 1 19 16 11 20 20 8 10 . 7 4 . 11 8 . 1 Fast Attach 33 | 6 3 1 . 1 9 . . . . . . 7 1 . 5 Attach 62 | . 1 . 1 1 17 3 2 . 7 2 . 14 6 . 8 Detach . | . . . . . . . . . . . . . . . . Swap 49 | . 10 7 1 6 4 1 3 . . 4 . 11 . . 2 Drop 92 | . 14 12 10 24 8 4 8 . . 2 1 8 . . 1 Fire 249 | . 88 14 38 11 54 13 . . . 2 . 6 5 . 18 Melee 153 | . 9 . . . 22 6 24 . 57 3 . 22 8 . 2 Ram 1 | . . . . . 1 . . . . . . . . . . Kick 2 | . 2 . . . . . . . . . . . . . . Crush . | . . . . . . . . . . . . . . . . Escape Stasis . | . . . . . . . . . . . . . . . . Rewire 141 | . . . 101 . . . . . 6 . . 34 . . . Trap . | . . . . . . . . . . . . . . . . Miscellaneous 9 | . . 1 . . 8 . . . . . . . . . . Route ------- -11/Scrapyard -10/Materials (discovered 5 exits: [*Mat x2] / [*Min x2] / *Sub) -10/Subcaves (discovered 3 exits: [*Mat x2] / *Rec) -9/Recycling (discovered 2 exits: [*Fac] / *Scr) -9/Scraptown (discovered 2 exits: *Fac x2) -6/Factory -6/Lower Caves -6/Lower Caves (discovered 2 exits: *Fac / *Dat) -6/Data Miner -5/Proximity Caves -5/Factory -5/Upper Caves -5/Warlord -4/Proximity Caves -4/Factory -4/DSF History --------- Turn | Location | Event 5 | -11/Scrapyard | Discovered new exit (range 13) 67 | -11/Scrapyard | Entered Materials 173 | -10/Materials | Discovered new exit (range 16) 315 | -10/Materials | Build established: Mutant 455 | -10/Materials | Discovered new exit (range 7) 609 | -10/Materials | Discovered new exit (range 9) 872 | -10/Materials | Discovered new exit (range 9) 1188 | -10/Materials | Core integrity fell below 50% 1440 | -10/Materials | Discovered new exit (range 11) 1513 | -10/Materials | Entered Subcaves 1651 | -10/Subcaves | Discovered new exit (range 8) 1693 | -10/Subcaves | Visited triangular shrine 1701 | -10/Subcaves | Found Prototype Device 1701 | -10/Subcaves | Identified V3-11A's Pendant 1706 | -10/Subcaves | Befriended Subdweller 1821 | -10/Subcaves | Befriended Subdweller 1821 | -10/Subcaves | Befriended Subdweller 1916 | -10/Subcaves | Befriended Subdweller 2183 | -10/Subcaves | Released subatomizers from SUBCON Basin 2302 | -10/Subcaves | Discovered new exit (range 16) 2643 | -10/Subcaves | A swath of the cavern ceiling suddenly collapsed 2671 | -10/Subcaves | Befriended Subdweller 3111 | -10/Subcaves | Befriended Subdweller 3596 | -10/Subcaves | Befriended Subdweller 4878 | -10/Subcaves | Visited 4L-MR0's lab 4931 | -10/Subcaves | Found Prototype Device 4945 | -10/Subcaves | Found Flightbrick 5222 | -10/Subcaves | Discovered new exit (range 11) 5223 | -10/Subcaves | Shifting Twisted Machinery released Flamer 5234 | -10/Subcaves | Shifting Twisted Machinery released Mak. Hammer 5319 | -10/Subcaves | Visited Clippyterm 5327 | -10/Subcaves | Learned location of Deep Caves (-7) 6594 | -10/Subcaves | Entered Recycling 6594 | -9/Recycling | Accompanied by 2 allies 6595 | -9/Recycling | Met a Zionite searching for Scraptown 7285 | -9/Recycling | Build established: Commander-Mutant 7765 | -9/Recycling | Discovered new exit (range 16) 7893 | -9/Recycling | Scanned before Scraplab entrance 8245 | -9/Recycling | Entered Scraplab 8312 | -9/Recycling | Discovered new exit (range 2) 8333 | -9/Recycling | Entered Scraptown 8333 | -9/Scraptown | Accompanied by 15 allies 8539 | -9/Scraptown | Delivered V3-11A's Pendant to T0-NE2 in exchange for information 8539 | -9/Scraptown | Identified Sfc. Transmogrifier 8903 | -9/Scraptown | Discovered new exit (range 11) 9461 | -9/Scraptown | Visited Shadow of the Wyrm 9523 | -9/Scraptown | Visited Awakened 9575 | -9/Scraptown | Visited Bundlers 9931 | -9/Scraptown | Visited Comm Corps 10166 | -9/Scraptown | Visited The Evicted 10270 | -9/Scraptown | Visited Assassins FH 10348 | -9/Scraptown | Visited Cave Peace 10686 | -9/Scraptown | Visited UFD Registry 10686 | -9/Scraptown | Registered with UFD as "Rustchassis" 11157 | -9/Scraptown | Visited LU-1G1's Boring Crew 11249 | -9/Scraptown | Visited Abandonware Association 11283 | -9/Scraptown | Learned abandonware demo "REPAIR.EXE" 11283 | -9/Scraptown | Learned abandonware demo "REVENGE.EXE" 11345 | -9/Scraptown | Visited Curators Association 11553 | -9/Scraptown | Visited Botcube Research 11601 | -9/Scraptown | Visited Infowarlord's Domain 11671 | -9/Scraptown | Visited Cartography Club 11730 | -9/Scraptown | Visited Scrapoid Pod Storage 11759 | -9/Scraptown | Visited Scrap Suit Storage 11872 | -9/Scraptown | Visited Modified Component R&D 12315 | -9/Scraptown | Discovered new exit (range 3) 12500 | -9/Scraptown | Met Optimus 12500 | -9/Scraptown | Accepted into 0bPrime 12900 | -9/Scraptown | Civil war broke out across Scraptown 12910 | -9/Scraptown | Found DM-GVY's Chainsaw 12969 | -9/Scraptown | Lost 10 allies 13106 | -9/Scraptown | Core integrity fell below 20% 13182 | -9/Scraptown | Entered Factory 13182 | -6/Factory | Accompanied by 10 allies 13182 | -6/Factory | Evolved 8 slots: Power x1, Propulsion x4, Utility x3 13183 | -6/Factory | Attached Flightbrick, gained temporary slots: Utility x3 13469 | -6/Factory | Lost 6 allies 13727 | -6/Factory | Build established: Mutant 14092 | -6/Factory | Lost 7 parts (2p2n2u1w) 14279 | -6/Factory | Build established: Gladiator 14401 | -6/Factory | Central database locked down 14452 | -6/Factory | Discovered new exit (range 8) 14483 | -6/Factory | Entered Lower Caves 14485 | -6/Lower Caves | Attracted the attention of an 0b10 checkpoint 15102 | -6/Lower Caves | Discovered new exit (range 11) 15147 | -6/Lower Caves | Build established: Hacker-Mutant 15608 | -6/Lower Caves | Learned Factory terminal intel 15635 | -6/Lower Caves | Build established: Mutant 16741 | -6/Lower Caves | Entered another Lower Caves area 16915 | -6/Lower Caves | Prototype Device suddenly appears! 16921 | -6/Lower Caves | Found Prototype Device 16931 | -6/Lower Caves | Acquired the password to a Derelict Tinkerer's latest research 16943 | -6/Lower Caves | Found Prototype Special Weapon 17061 | -6/Lower Caves | Caught by Unaware searching for contraband prototypes 17097 | -6/Lower Caves | Caught by Unaware searching for contraband prototypes 17468 | -6/Lower Caves | Encountered a Warlord checkpoint 17501 | -6/Lower Caves | Learned Factory stockpile data 17540 | -6/Lower Caves | Identified Amulet of Y3-NDR 17563 | -6/Lower Caves | Joined by bewildered Wizard 17563 | -6/Lower Caves | Joined by bewildered Wizard 17576 | -6/Lower Caves | Discovered new exit (range 15) 17622 | -6/Lower Caves | Joined by bewildered Wizard 17628 | -6/Lower Caves | Joined by bewildered Wizard 18012 | -6/Lower Caves | Discovered new exit (range 13) 18304 | -6/Lower Caves | Entered a destroyed Warlord outpost 18332 | -6/Lower Caves | Entered Data Miner 18332 | -6/Data Miner | Discovered new exit (range 6) 18355 | -6/Data Miner | Met Data Miner 18387 | -6/Data Miner | Learned location of Section 7 (-2) 18387 | -6/Data Miner | Acquired the access code to Warlord's prototype stash 18410 | -6/Data Miner | Received God Mode back door access code from Data Miner 18446 | -6/Data Miner | Entered Proximity Caves 18673 | -5/Proximity Caves | Received a Behemoth hack from an annoying Tinkerer 18716 | -5/Proximity Caves | Spotter reported a threat 18853 | -5/Proximity Caves | Spotter reported a threat 18909 | -5/Proximity Caves | Learned Factory stockpile data 18965 | -5/Proximity Caves | Learned location of Armory (-3) 18990 | -5/Proximity Caves | Spotter reported a threat 19043 | -5/Proximity Caves | Spotter reported a threat 19081 | -5/Proximity Caves | Core integrity fell below 50% 19085 | -5/Proximity Caves | Attracted the attention of an 0b10 outpost 19289 | -5/Proximity Caves | Spotter reported a threat 19342 | -5/Proximity Caves | Spotter reported a threat 19398 | -5/Proximity Caves | Spotter reported a threat 19486 | -5/Proximity Caves | Spotter reported a threat 19539 | -5/Proximity Caves | Spotter reported a threat 19681 | -5/Proximity Caves | Build established: Hacker-Mutant 19882 | -5/Proximity Caves | Lost 4 parts (4u) 20045 | -5/Proximity Caves | Discovered new exit (range 8) 20071 | -5/Proximity Caves | Entered Factory 20071 | -5/Factory | Evolved 2 slots: Utility x1, Weapon x1 20073 | -5/Factory | Loaded intel: 25 terminal locations 20210 | -5/Factory | Discovered new exit (range 13) 20249 | -5/Factory | Entered Upper Caves 20252 | -5/Upper Caves | A Derelict revealed a hidden shortcut to "reach the base" 20255 | -5/Upper Caves | Entered Warlord 20309 | -5/Warlord | Discovered new exit (range 15) 20389 | -5/Warlord | System corruption cleaned by Quarantine Array 20441 | -5/Warlord | Build established: Scavenger-Gladiator 21137 | -5/Warlord | Build established: Mutant 21221 | -5/Warlord | Found Prototype Device 21221 | -5/Warlord | Identified Minesniffer Drone Bay 21364 | -5/Warlord | Warlord's base attacked by MAIN.C 21563 | -5/Warlord | Opened Warlord's prototype stash 21570 | -5/Warlord | Found Prototype Reactor 21570 | -5/Warlord | Identified Vortex Chain Reactor 21588 | -5/Warlord | Found Prototype Hackware 21588 | -5/Warlord | Identified Ghost Barrier 21595 | -5/Warlord | Found Prototype Device 21595 | -5/Warlord | Identified Thermal Barrier 21714 | -5/Warlord | Warlord forces counterattacked 21745 | -5/Warlord | Learned location of Quarantine (-3) 21745 | -5/Warlord | Learned Research trap positions 21749 | -5/Warlord | Learned Armory security intel 21749 | -5/Warlord | Learned Armory scanalyzer intel 21805 | -5/Warlord | Rebuked by Warlord 21869 | -5/Warlord | Build established: Hacker-Mutant 21950 | -5/Warlord | Found Prototype Piercing Weapon 21950 | -5/Warlord | Identified Vortex Lance 21956 | -5/Warlord | Found Vortex Lance 21964 | -5/Warlord | Met EX-DEC 21992 | -5/Warlord | Found Prototype Energy Gun 21992 | -5/Warlord | Identified Vortex Rail 22024 | -5/Warlord | Found Vortex Rail 22039 | -5/Warlord | Warlord base infiltrated, sounded retreat 22412 | -5/Warlord | Lost 3 allies 22440 | -5/Warlord | Spotted Striker 22463 | -5/Warlord | Lost 4 parts (1n3u) 22474 | -5/Warlord | Destroyed Striker 22509 | -5/Warlord | Spotted Executioner 22509 | -5/Warlord | Spotted Executioner 22534 | -5/Warlord | Entered Proximity Caves 22539 | -4/Proximity Caves | Spotter reported a threat 22539 | -4/Proximity Caves | Spotter reported a threat 22564 | -4/Proximity Caves | Lost 10 parts (3p3n4u) 22831 | -4/Proximity Caves | Core integrity fell below 50% 23170 | -4/Proximity Caves | Discovered new exit (range 9) 23189 | -4/Proximity Caves | Attracted the attention of an 0b10 checkpoint 23199 | -4/Proximity Caves | Entered Factory 23199 | -4/Factory | Evolved 2 slots: Utility x2 23214 | -4/Factory | Identified exit to DSF 23214 | -4/Factory | Entered DSF 23312 | -4/DSF | Additional patrols routed to DSF 23378 | -4/DSF | Identified Molecular Deconstructor 23414 | -4/DSF | Core integrity fell below 50% 23447 | -4/DSF | Lost 3 parts (1p1u1w) 23574 | -4/DSF | Core integrity fell below 20% 23588 | -4/DSF | Destroyed by X-77 Beamer with Gatling Laser Last Messages --------------- 23555_ >> DECODED: Authchip [Weapon] location. 23556_ Overheating: Matter decay (-52). 23557_ Power failure, Lgt. Antimatter Reactor shutdown. 23558_ Overheating: Energy bleed (-11). 23558_ Lgt. Antimatter Reactor destroyed. 23560_ X-77 Beamer destroyed. 23561_ Overheating: Imp. Armor Integrity Analyzer damaged (-4). 23564_ Overheating: Energy bleed (-2). 23566_ Thermoblaster destroyed. 23567_ Overheating: Energy bleed (-4). 23569_ Overheating: System interference. 23569_ Imp. Armor Integrity Analyzer temporarily disabled. 23570_ Imp. Armor Integrity Analyzer destroyed. 23573_ >> DECODED: Adv. Point Defense System location. 23577_ Acquired Imp. Arc Projector. 23588_ Imp. Arc Projector destroyed. Map ----- +----------------------------------------------------+ | ????????????????????#]]### ###??????? | | ????????????????????###### ##???????? | | ???????????????????????# ] ]#???????? | | ???????????????????????#] ]#???????? | | ???????????????????????### ##???????? | | ???????????????????????#]] #???????? | | ?????????!????!????????#]] #???????? | | ???????????????????????#]] #???????? | | ????????????????????###### ###??????? | | ????????????????#!??#!!!?# !!#??????? | | ??[??!?!?????? ##!!!#!!!## !!###????? | | ???????????? %" #????? | | ????????????H %##?????? | | ???????????? % ;#?????? | | ?????!??????? ##!!!#===## !!##?????? | | ????????????????#!??#===?# !##?????? | | ????????????????????###### ##????? | | ???????????????????????#* ?????? | | ?????????!?????????????#** #??????? | | ??????????????*????????#** ###?????? | | ???????????????????????### %;; #?????? | | ??????????!????????????# [!*; #?????? | | ???????????????????????# !%*###?????? | | ???????????????????????### [;##??????? | | ?????????????????????*?#;; %*;##?????? | | ???????????????????????#;@ [ #?????? | | ???????????????????? x%= % %%#???? | | ???????????????? ! % ;;%#???? | | ????????????!!==#***# % %"####???? | | ???????????!???=###?## "%%"#??????? | | ?????????????????????## # %%;;#??????? | | ??????????????????????####%## #??????? | | ??????????????????????????%"?##??????? | | ??????????????????????????##?????????? | | ?????????????????????????????????????? | | ?????????????????????????????????????? | | ?????????????????????????????????????? | | ?????????????????????????????????????? | | | | | | | | | | | | | | | | | | | | | | | | | +----------------------------------------------------+ Best States ------------- Heat Dissipation 59 Energy Generation 55 Energy Capacity 1240 Matter Stores 300 Matter Capacity 300 Sight Range 22 Robot Scan Range 15 Terrain Scan Range 18 Terrain Scan Density 10 Jamming Range 14 Power Amplification 20 Base Temperature (-) 200 EM Shielding 2 Armor Coverage 625 Resistance: KI 45 Resistance: TH 70 Resistance: EX 20 Resistance: EM 45 Resistance: I 20 Resistance: S 20 Resistance: P 20 Propulsion Shielding 33 Utility Shielding 66 Phase Shifting 10 Evasion (%) 70 Melee Accuracy 8 Launcher Accuracy 30 Target Analysis 6 Armor Integrity Analysis 40 Energy Filtering 30 Force Boost 20 Offensive Hacking 42 Defensive Hacking 20 Item Schematics ----------------- Huge Storage Unit | -9/Recycling | Hacked Arm. Wheel | -9/Recycling | Hacked Imp. Aluminum Leg | -9/Recycling | Hacked Plasma Cutter | -9/Recycling | Hacked Lgt. Regenerative Plating | -6/Data Miner | Free Combat Drone Bay | -6/Data Miner | Free Cld. Gravmag System | -6/Data Miner | Free Imp. Matter Compressor | -6/Data Miner | Free Hvy. Proton Cannon | -6/Data Miner | Free Imp. Antigrav System | -6/Data Miner | Free Adv. Reaction Control System | -6/Data Miner | Free Wave Gun | -6/Data Miner | Free Dispersion Rifle | -6/Data Miner | Free Robot Schematics ------------------ L-41 Fighter | -6/Data Miner | Free G-50 Soldier | -6/Data Miner | Free Y-54 Guardian | -6/Data Miner | Free Fabricated ------------ Nothing Repaired ---------- Nothing Studied --------- Plasma Cutter | -6/Factory | Hacked Arm. Huge Wheel | -6/Factory | Hacked Rnf. Deuterium Engine | -6/Factory | Hacked Mic. Nuclear Core | -6/Factory | Hacked Alien Tech Used ----------------- None Achievements -------------- All Kinds Of Bad News Deconstruction Reappropriation Rodney's Helpers SUBSUB Challenges ------------ None Game ------ Seed AntisysAluminumSlayer Manual? 0 Play Time 01:56:07 Cumulative 285.7 hours Start 2026.06.25 @ 23:00:23 End 2026.06.26 @ 11:35:58 Sessions 3 Manual Loads 0 Difficulty Adventurer Special Mode None Game No. 334 Rogue 0 Adventurer 334 Explorer 0 Win Type - Total 0 Types 0/0/0/0/0/0/0/0/0/0 Lore% 74 Gallery% 59 Achievement% 40 Wizard Run 0 Options --------- Layout 2 ASCII 0 Keyboard 0 Movement Mouse Keybinds 0 Fullscreen 2 Font 48/Smallcaps Map View 50x44 Zoom Use 0% Tactical HUD 1 Map Filters NONE Filters NONE Steam 1 RUN: 2449f161-f7a1-4cf6-88ef-c1bde098bd2d